bitfinex-derivatives/quotes_SOLF0:USTF0_20241009
["timestamp","ask_amount","ask_price","bid_price","bid_amount"]
[1728432848890,3.4786,143.8,143.79,4.9]
[1728432849601,0.12502,143.81,143.79,4.9]
[1728432849800,3.60352,143.81,143.79,4.9]
[1728432850491,0.12502,143.81,143.79,4.9]
[1728432850700,3.4786,143.8,143.79,4.9]
[1728432851510,3.4788,143.79,143.77,4.9]
[1728432851895,0.12502,143.81,143.77,4.9]
[1728432853502,3.4787,143.8,143.77,8.3793]
[1728432854807,3.4787,143.8,143.78,10.69]
[1728432857207,3.60352,143.81,143.78,14.169]
[1728432859303,3.4787,143.8,143.78,10.69]
[1728432859505,10.81502,143.81,143.77,4.9]
[1728432860113,3.479,143.79,143.76,10.69]
[1728432860810,3.479,143.79,143.76,14.1694]
[1728432861010,3.4786,143.8,143.76,10.69]
[1728432861201,3.4786,143.8,143.76,15.59]
[1728432861809,3.4786,143.8,143.77,3.4792]
[1728432862422,3.4787,143.8,143.76,15.59]
[1728432862612,10.81502,143.81,143.76,4.9]
[1728432863315,3.4787,143.8,143.76,4.9]
[1728432863614,10.81502,143.81,143.76,4.9]
[1728432865002,3.4792,143.78,143.76,4.9]
[1728432865611,3.4792,143.78,143.75,14.1698]
[1728432865916,10.69,143.79,143.74,10.69]
[1728432866115,14.22459434,143.78,143.73,14.1701]
[1728432866314,10.69,143.78,143.73,15.59]
[1728432866915,10.69,143.77,143.72,14.1705]
[1728432867210,10.69,143.77,143.72,19.0705]
[1728432867727,10.69,143.77,143.72,14.1705]
[1728432867926,10.69,143.77,143.72,10.69]
[1728432868121,3.41664696,143.78,143.68,1.3887]
[1728432868122,10.69,143.75,143.68,1.3887]
[1728432868322,3.4807,143.72,143.7,4.9]
[1728432868631,10.69,143.75,143.7,4.9]
[1728432868918,3.4803,143.73,143.71,10.69]
[1728432870029,19.08068283,143.79,143.72,10.69]
[1728432870222,15.59,143.79,143.75,10.69]
[1728432871124,19.06328161,143.79,143.75,10.69]
[1728432871327,15.59,143.79,143.75,10.69]
[1728432871524,19.10678464,143.79,143.75,10.69]
[1728432871732,3.4795,143.76,143.75,10.69]
[1728432872825,3.4804,143.73,143.69,3.60612]
[1728432873025,10.69,143.76,143.7,15.59]
[1728432873730,3.48,143.75,143.7,19.071]
[1728432873936,10.69,143.76,143.7,19.071]
[1728432874327,3.4803,143.73,143.7,19.071]
[1728432874730,10.69,143.74,143.7,15.59]
[1728432874925,3.4805,143.72,143.7,15.59]
[1728432875129,10.69,143.74,143.7,15.59]
[1728432875523,15.59,143.76,143.7,19.071]
[1728432875729,15.59,143.76,143.71,10.69]
[1728432876631,3.4803,143.74,143.71,10.69]
[1728432877828,3.4799,143.75,143.72,14.1705]
[1728432878027,3.4799,143.75,143.72,19.0705]
[1728432879941,3.4799,143.75,143.72,14.1705]
[1728432884448,3.4799,143.75,143.71,4.9]
[1728432884449,3.4795,143.77,143.74,10.69]
[1728432884633,3.4795,143.77,143.75,10.69]
[1728432884833,4.9,143.79,143.75,10.69]
[1728432885924,104.34356683,143.8,143.75,10.69]
[1728432886325,3.4792,143.78,143.75,10.69]
[1728432886526,14.19491395,143.79,143.75,10.69]
[1728432886732,14.19491395,143.79,143.74,15.59]
[1728432886935,3.4798,143.75,143.74,4.9]
[1728432887923,3.4796,143.76,143.74,4.9]
[1728432891334,3.4796,143.76,143.73,3.4802]
[1728432895039,3.4796,143.76,143.74,10.69]
[1728432896442,10.69,143.78,143.74,10.69]
[1728432896649,10.69,143.79,143.74,10.69]
[1728432897152,93.65356683,143.8,143.75,10.69]
[1728432897443,93.65356683,143.8,143.75,14.1696]
[1728432897747,104.34356683,143.8,143.75,14.1696]
[1728432898946,101.49026683,143.8,143.75,14.1696]
[1728432899347,3.479,143.79,143.75,14.1696]
[1728432900441,92.89166683,143.8,143.77,3.4791]
[1728432900747,89.41296683,143.8,143.78,10.69]
[1728432901460,0.12502,143.81,143.78,10.69]
[1728432901945,10.69,143.79,143.7,2.7706]
[1728432902249,10.69,143.79,143.72,10.69]
[1728432902250,10.69,143.77,143.72,10.69]
[1728432902443,14.1694,143.77,143.73,10.69]
[1728432902645,3.4794,143.77,143.73,10.69]
[1728432903447,3.4794,143.77,143.74,3.4799]
[1728432903644,14.1694,143.77,143.72,10.69]
[1728432904151,3.4789,143.79,143.75,10.69]
[1728432904347,0.12502,143.81,143.77,10.69]
[1728432904751,0.12502,143.81,143.79,10.69]
[1728432906450,3.60352,143.81,143.79,10.69]
[1728432907753,0.12502,143.81,143.77,4.88]
[1728432907952,3.4789,143.79,143.77,4.88]
[1728432908147,0.12502,143.81,143.77,4.88]
[1728432908345,0.12502,143.81,143.78,10.69]
[1728432909451,10.81502,143.81,143.77,8.3592]
[1728432909754,10.81502,143.81,143.77,4.88]
[1728432910151,3.4789,143.79,143.77,4.88]
[1728432910353,10.69,143.8,143.75,10.69]
[1728432910947,10.69,143.77,143.73,4.88]
[1728432911549,3.4797,143.76,143.73,4.88]
[1728432911751,10.69,143.77,143.73,4.88]
[1728432911951,10.69,143.78,143.73,15.57]
[1728432912552,3.4794,143.77,143.73,19.0501]
[1728432913755,3.4794,143.77,143.74,3.48]
[1728432916361,1.3867,143.8,143.73,15.57]
[1728432916558,0.12502,143.81,143.76,10.69]
[1728432916559,10.81502,143.81,143.76,10.69]
[1728432917661,0.12502,143.81,143.76,10.69]
[1728432918058,0.12502,143.81,143.76,15.57]
[1728432918255,0.12502,143.81,143.76,19.0494]
[1728432918256,3.4787,143.8,143.76,19.0494]
[1728432918458,0.12502,143.81,143.76,19.0494]
[1728432918663,10.69,143.79,143.76,4.88]
[1728432918862,10.69,143.78,143.76,4.88]
[1728432919160,10.69,143.78,143.74,3.48]
[1728432919161,10.69,143.78,143.73,15.57]
[1728432919865,10.69,143.79,143.73,15.57]
[1728432920063,3.4792,143.78,143.75,3.4797]
[1728432920260,10.69,143.78,143.73,15.57]
[1728432920463,3.4797,143.76,143.73,3.4802]
[1728432920657,3.4797,143.76,143.73,8.3602]
[1728432921070,3.4797,143.76,143.74,3.48]
[1728432921271,10.69,143.78,143.74,3.48]
[1728432921571,3.4794,143.77,143.74,14.17]
[1728432924664,1.3665,143.8,143.76,10.69]
[1728432924868,10.81502,143.81,143.76,10.69]
[1728432925064,10.81502,143.81,143.76,15.57]
[1728432925258,10.81502,143.81,143.76,19.0494]
[1728432925259,3.4788,143.79,143.76,19.0494]
[1728432925464,10.81502,143.81,143.76,15.57]
[1728432926354,3.4786,143.8,143.76,15.57]
[1728432926564,10.81502,143.81,143.76,15.57]
[1728432926768,10.81502,143.81,143.78,10.69]
[1728432926769,0.12502,143.81,143.78,10.69]
[1728432927465,3.60342,143.81,143.78,14.169]
[1728432928772,0.12502,143.81,143.77,10.69]
[1728432928969,10.69,143.79,143.76,4.88]
[1728432929870,14.169,143.79,143.76,4.88]
[1728432930171,10.69,143.77,143.76,4.88]
[1728432930374,10.69,143.77,143.74,3.4798]
[1728432930669,3.4791,143.78,143.74,10.69]
[1728432931263,3.4791,143.78,143.75,3.4796]
[1728432931478,10.69,143.79,143.73,15.59]
[1728432931871,10.69,143.79,143.75,3.4796]
[1728432932671,10.69,143.8,143.74,10.69]
[1728432932877,10.69,143.78,143.73,15.59]
[1728432933566,3.4793,143.77,143.74,3.4798]
[1728432934959,3.4793,143.77,143.75,3.4798]
[1728432938178,3.4793,143.77,143.7,4.0461]
[1728432938477,10.69,143.77,143.73,4.9]
[1728432938986,3.4794,143.77,143.74,3.4799]
[1728432941977,3.4794,143.77,143.73,15.59]
[1728432942181,3.4791,143.78,143.75,3.4796]
[1728432942568,0.12502,143.81,143.77,10.69]
[1728432942782,0.12502,143.81,143.79,3.4787]
[1728432943383,0.12502,143.81,143.8,14.1686]
[1728432944084,0.12502,143.81,143.8,19.0686]
[1728432948697,10.81502,143.87,143.83,3.4777]
[1728432948698,0.12502,143.87,143.83,3.4777]
[1728432948899,0.12502,143.87,143.83,14.1677]
[1728432949812,0.12502,143.87,143.84,14.1674]
[1728432950104,0.12502,143.87,143.85,10.69]
[1728432950888,0.12502,143.87,143.86,14.1671]
[1728432951398,0.12502,143.87,143.86,19.0671]
[1728432952195,10.69,143.92,143.88,3.4764]
[1728432952196,3.4757,143.92,143.88,3.4764]
[1728432952386,3.4757,143.92,143.88,14.1664]
[1728432957303,3.60062,143.93,143.88,10.69]
[1728432957499,3.60062,143.93,143.89,4.88]
[1728432957692,3.60062,143.93,143.89,15.57]
[1728432958294,0.12502,143.93,143.84,6.07824032]
[1728432958495,0.12502,143.93,143.88,10.69]
[1728432958697,0.12502,143.93,143.89,10.69]
[1728432959097,3.60052,143.93,143.89,14.1662]
[1728432959401,0.12502,143.93,143.89,10.69]
[1728432959705,3.4758,143.92,143.89,10.69]
[1728432960601,3.4758,143.92,143.88,8.3564]
[1728432960602,3.4764,143.89,143.87,4.92]
[1728432960797,3.4764,143.89,143.86,3.477]
[1728432960798,10.69,143.91,143.86,10.69]
[1728432961000,10.69,143.91,143.86,15.61]
[1728432961301,3.4764,143.89,143.86,15.61]
[1728432961500,10.69,143.91,143.86,15.61]
[1728432961710,3.4764,143.89,143.86,15.61]
[1728432962606,10.69,143.89,143.86,4.92]
[1728432962902,10.69,143.89,143.85,15.61]
[1728432962903,3.4769,143.87,143.85,15.61]
[1728432963213,3.4768,143.88,143.85,15.61]
[1728432964404,3.4768,143.88,143.85,19.0872]
[1728432965206,3.4771,143.87,143.85,10.69]
[1728432965400,5.04502,143.93,143.84,4.92]
[1728432965401,10.69,143.88,143.84,4.92]
[1728432965604,4.92,143.9,143.81,10.81502]
[1728432965813,10.69,143.84,143.81,5.04502]
[1728432966413,3.478,143.83,143.81,5.04502]
[1728432966616,10.69,143.85,143.81,5.04502]
[1728432966919,10.69,143.85,143.81,15.73502]
[1728432967522,10.69,143.85,143.81,0.12502]
[1728432967719,10.69,143.84,143.81,0.12502]
[1728432968227,3.4781,143.82,143.81,0.12502]
[1728432968516,14.1681,143.82,143.81,0.12502]
[1728432968820,10.69,143.8,143.77,4.92]
[1728432969225,14.1686,143.8,143.77,4.92]
[1728432969524,3.4786,143.8,143.77,4.92]
[1728432970318,14.08575431,143.82,143.77,4.92]
[1728432970524,3.4789,143.79,143.77,4.92]
[1728432970824,10.69,143.81,143.77,4.92]
[1728432971021,3.4792,143.78,143.75,5.04502]
[1728432971224,3.4792,143.78,143.75,15.73502]
[1728432971823,3.4785,143.81,143.77,14.1691]
[1728432972020,2.6081,143.83,143.79,10.69]
[1728432972713,6.0859,143.83,143.8,14.1685]
[1728432972922,3.4778,143.83,143.8,10.69]
[1728432973118,15.61,143.85,143.81,10.69]
[1728432973328,3.4778,143.84,143.81,10.69]
[1728432975123,3.4783,143.82,143.79,10.69]
[1728432977526,15.61,143.85,143.8,14.1686]
[1728432978232,3.4778,143.84,143.8,14.1686]
[1728432979720,15.61,143.85,143.8,14.1686]
[1728432979924,15.61,143.85,143.79,14.1687]
[1728432979925,3.478,143.83,143.79,14.1687]
[1728432981031,14.1677,143.84,143.8,3.4784]
[1728432981217,3.4777,143.84,143.8,14.1684]
[1728432982122,3.4783,143.81,143.78,19.089]
[1728432982335,10.69,143.8,143.77,4.92]
[1728432982927,6.2834,143.82,143.77,4.92]
[1728432982928,10.69,143.81,143.77,4.92]
[1728432983931,3.4789,143.79,143.76,10.69]
[1728432984531,3.4789,143.79,143.75,8.52462]
[1728432984721,3.4791,143.78,143.75,5.04502]
[1728432984922,18.053,143.81,143.75,0.12502]
[1728432985340,3.4795,143.76,143.75,0.12502]
[1728432985634,16.7,143.77,143.71,4.92]
[1728432985827,20.22235303,143.77,143.71,4.92]
[1728432986234,20.22235303,143.77,143.69,0.12502]
[1728432986442,4.92,143.78,143.69,21.74502]
[1728432986443,1.3746,143.76,143.69,21.74502]
[1728432987326,3.4799,143.75,143.71,3.4806]
[1728432987834,3.4795,143.77,143.74,3.48]
[1728432988035,4.92,143.8,143.74,3.48]
[1728432988331,3.4791,143.78,143.73,20.1801]
[1728432988726,3.4791,143.78,143.73,16.7]
[1728432988924,3.4791,143.78,143.74,3.48]
[1728432989336,3.4791,143.78,143.73,16.7]
[1728432989337,4.92,143.8,143.73,16.7]
[1728432989537,3.4797,143.76,143.72,8.4003]
[1728432989733,21.62,143.8,143.72,4.92]
[1728432990733,3.4791,143.78,143.73,3.4801]
[1728432990936,3.4791,143.78,143.72,4.92]
[1728432991439,3.4793,143.77,143.74,3.48]
[1728432991639,3.4793,143.77,143.72,4.92]
[1728432992137,21.62,143.8,143.72,4.92]
[1728432992440,3.4792,143.78,143.72,4.92]
[1728432993028,3.4792,143.78,143.74,3.4798]
[1728432994437,3.4793,143.77,143.72,4.92]
[1728432994740,21.62,143.8,143.73,3.4802]
[1728432995139,3.4791,143.78,143.73,3.4802]
[1728432995439,21.62,143.8,143.73,3.4802]
[1728432995839,3.4795,143.77,143.73,3.4802]
[1728432996036,21.62,143.8,143.72,4.92]
[1728432996341,21.62,143.8,143.75,3.4797]
[1728432997435,3.4791,143.78,143.75,3.4797]
[1728433000040,2.80022,143.81,143.75,3.4796]
[1728433000244,2.80022,143.81,143.72,4.92]
[1728433000548,16.7,143.8,143.72,4.92]
[1728433000937,3.4797,143.76,143.72,8.4003]
[1728433001139,3.4797,143.76,143.72,4.92]
[1728433001345,16.7,143.8,143.72,4.92]
[1728433002344,2.80022,143.81,143.72,8.35602643]
[1728433002546,2.80022,143.81,143.73,16.7]
[1728433002740,3.4787,143.8,143.75,3.4797]
[1728433002940,3.4787,143.8,143.75,4.92]
[1728433003241,3.4787,143.8,143.77,3.4793]
[1728433003751,3.4788,143.79,143.77,3.4793]
[1728433004353,3.4788,143.79,143.76,3.4795]
[1728433005447,3.4787,143.8,143.77,3.4792]
[1728433005749,0.12502,143.81,143.75,21.62]
[1728433006146,3.60342,143.81,143.78,3.4789]
[1728433006746,3.60342,143.81,143.71,1.3794]
[1728433006747,3.4796,143.76,143.73,3.4802]
[1728433006937,16.7,143.8,143.74,4.92]
[1728433007138,19.4514,143.8,143.74,4.92]
[1728433007345,3.4797,143.76,143.74,4.92]
[1728433007953,3.4797,143.76,143.73,3.4802]
[1728433012544,3.4802,143.74,143.71,3.4807]
[1728433012753,16.7,143.78,143.71,3.4807]
[1728433012754,16.7,143.78,143.71,4.92]
[1728433014347,20.8038,143.8,143.71,21.62]
[1728433014655,3.4794,143.77,143.74,3.4799]
[1728433015356,3.4794,143.77,143.71,21.62]
[1728433015555,20.8038,143.8,143.71,21.62]
[1728433016256,3.4791,143.78,143.75,3.4797]
[1728433019060,16.7,143.78,143.71,4.92]
[1728433019558,20.8038,143.8,143.71,4.92]
[1728433020061,20.8038,143.8,143.72,4.92]
[1728433021457,3.4791,143.78,143.75,3.4796]
[1728433022352,18.0524,143.8,143.76,3.4794]
[1728433022558,18.0524,143.8,143.73,4.92]
[1728433022559,0.12502,143.81,143.73,21.62]
[1728433023063,3.60352,143.81,143.77,3.4791]
[1728433023456,3.60352,143.81,143.78,3.479]
[1728433023965,0.12502,143.81,143.76,4.92]
[1728433024466,3.4787,143.8,143.76,8.3994]
[1728433027367,0.12502,143.81,143.76,4.92]
[1728433028573,3.479,143.79,143.76,8.3995]
[1728433028869,16.7,143.78,143.69,16.82502]
[1728433029072,16.7,143.78,143.71,4.92]
[1728433029670,16.7,143.78,143.73,3.4802]
[1728433029671,3.4797,143.76,143.73,3.4802]
[1728433030877,3.4798,143.75,143.72,3.4805]
[1728433031772,3.4794,143.77,143.74,3.4799]
[1728433032173,18.1026,143.8,143.71,21.62]
[1728433033077,3.4795,143.76,143.73,3.4801]
[1728433033673,3.4795,143.76,143.74,3.48]
[1728433034187,3.4794,143.77,143.74,3.48]
[1728433035278,3.4789,143.79,143.76,3.4795]
[1728433036178,18.1026,143.8,143.75,3.4797]
[1728433036380,3.4791,143.78,143.75,3.4797]
[1728433036982,18.1026,143.8,143.74,4.92]
[1728433037187,3.4789,143.79,143.76,3.4795]
[1728433039682,3.4789,143.79,143.74,4.92]
[1728433039892,3.4789,143.79,143.75,3.4796]
[1728433040773,3.4791,143.78,143.75,3.4796]
[1728433043692,10.69,143.76,143.74,4.92]
[1728433043984,10.69,143.75,143.74,4.92]
[1728433044687,10.69,143.76,143.74,4.92]
[1728433045073,14.1696,143.76,143.74,4.92]
[1728433045274,10.69,143.78,143.74,8.3999]
[1728433046492,3.4794,143.77,143.74,8.3999]
[1728433051798,10.69,143.77,143.74,4.92]
[1728433051986,3.4798,143.75,143.74,4.92]
[1728433052988,10.69,143.77,143.74,4.92]
[1728433053189,3.4796,143.76,143.74,4.92]
[1728433053389,7.6705,143.79,143.74,8.4]
[1728433053695,10.69,143.78,143.74,8.4]
[1728433054498,3.4794,143.77,143.74,8.4]
[1728433057701,10.69,143.78,143.74,4.92]
[1728433057900,14.1692,143.78,143.75,3.4796]
[1728433063900,10.69,143.77,143.74,4.92]
[1728433064497,3.4794,143.77,143.74,8.3998]
[1728433064702,10.69,143.78,143.74,4.92]
[1728433065298,14.1692,143.78,143.75,3.4796]
[1728433065793,2.7905,143.79,143.74,4.92]
[1728433066109,15.5712,143.8,143.77,3.4792]
[1728433066505,3.60352,143.81,143.76,3.4793]
[1728433066703,0.12502,143.81,143.77,15.57]
[1728433067401,0.12502,143.81,143.78,3.479]
[1728433068202,0.12502,143.81,143.77,15.57]
[1728433068398,0.12502,143.81,143.78,10.69]
[1728433068702,0.12502,143.81,143.8,10.69]
[1728433068900,10.81502,143.87,143.82,10.69]
[1728433069604,14.29192,143.87,143.84,3.4776]
[1728433069804,14.29192,143.87,143.83,10.69]
[1728433070303,0.12502,143.87,143.83,15.57]
[1728433070699,0.12502,143.87,143.84,10.69]
[1728433070894,0.12502,143.87,143.85,3.4774]
[1728433074595,0.12502,143.87,143.85,10.69]
[1728433074805,0.12502,143.87,143.86,3.4771]
[1728433075101,0.12502,143.87,143.86,14.1671]
[1728433075401,0.12502,143.87,143.86,3.4771]
[1728433076506,0.12502,143.87,143.85,10.69]
[1728433076712,0.12502,143.87,143.85,14.1673]
[1728433078610,0.12502,143.87,143.86,3.4771]
[1728433078908,0.12502,143.87,143.86,8.3571]
[1728433083217,0.12502,143.87,143.86,4.88]
[1728433083515,0.12502,143.87,143.84,4.88]
[1728433084012,3.4773,143.86,143.84,4.88]
[1728433084316,0.12502,143.87,143.84,15.57]
[1728433084514,0.12502,143.87,143.86,10.69]
[1728433084714,0.12502,143.87,143.86,14.1671]
[1728433086413,0.12502,143.93,143.89,3.4762]
[1728433086615,0.12502,143.93,143.89,14.1662]
[1728433086809,3.60072,143.93,143.89,14.1662]
[1728433087209,3.60072,143.93,143.9,3.4761]
[1728433087808,3.60072,143.93,143.89,10.69]
[1728433088008,3.60072,143.93,143.89,14.1663]
[1728433088715,3.60072,143.93,143.9,3.4761]
[1728433090107,0.12502,143.93,143.92,14.1657]
[1728433090616,3.4744,143.98,143.94,3.4752]
[1728433090814,3.4744,143.98,143.94,19.0452]
[1728433091011,10.69,143.95,143.87,0.12502]
[1728433091217,10.69,143.91,143.87,0.12502]
[1728433091408,14.1666,143.89,143.87,0.12502]
[1728433091608,10.69,143.9,143.87,0.12502]
[1728433091820,10.69,143.9,143.88,3.4765]
[1728433092017,10.69,143.9,143.87,0.12502]
[1728433092409,14.1661,143.91,143.87,3.60172]
[1728433092616,3.4761,143.91,143.87,10.81502]
[1728433092920,14.1659,143.92,143.88,10.69]
[1728433093725,14.1659,143.92,143.88,14.1666]
[1728433094623,1.308,143.95,143.89,4.88]
[1728433095115,4.88,143.96,143.91,3.4759]
[1728433095116,3.4754,143.94,143.91,3.4759]
[1728433095306,16.7,143.97,143.89,4.88]
[1728433095710,3.4748,143.96,143.92,3.4757]
[1728433096010,3.4748,143.96,143.89,4.88]
[1728433096011,16.7,143.97,143.89,4.88]
[1728433096913,3.475,143.95,143.9,3.4759]
[1728433097109,3.475,143.95,143.89,4.88]
[1728433097922,3.4748,143.96,143.9,16.7]
[1728433098412,3.4746,143.97,143.93,3.4753]
[1728433098612,3.4746,143.97,143.93,8.3553]
[1728433098914,2.701,143.98,143.93,4.88]
[1728433099819,3.4745,143.97,143.93,4.88]
[1728433100719,2.701,143.98,143.93,4.88]
[1728433100915,4.92472,143.99,143.95,3.4748]
[1728433101110,1.45062,143.99,143.93,4.88]
[1728433102231,1.45062,143.99,143.93,8.3553]
[1728433102709,3.4745,143.97,143.93,4.88]
[1728433103523,3.4745,143.97,143.94,3.4751]
[1728433105520,3.4744,143.98,143.95,3.4749]
[1728433105834,1.45062,143.99,143.93,4.88]
[1728433106323,3.4744,143.98,143.93,8.3554]
[1728433106519,1.45062,143.99,143.93,8.3554]
[1728433106928,3.4746,143.97,143.94,3.4752]
[1728433107232,1.45062,143.99,143.93,4.88]
[1728433107527,3.4744,143.98,143.95,3.4749]
[1728433107720,3.4744,143.98,143.93,4.88]
[1728433108025,0.12502,143.99,143.93,4.88]
[1728433108922,0.12502,143.99,143.94,3.475]
[1728433109730,3.4745,143.97,143.94,3.4751]
[1728433110033,0.12502,143.99,143.94,3.4751]
[1728433110430,0.12502,143.99,143.93,4.88]
[1728433110634,3.4743,143.98,143.95,3.4749]
[1728433111234,3.4743,143.98,143.94,3.4751]
[1728433111431,3.4747,143.96,143.95,4.96]
[1728433114039,3.4747,143.96,143.93,8.4353]
[1728433114529,10.68,143.96,143.92,10.68]
[1728433114739,10.68,143.95,143.91,4.96]
[1728433114935,10.68,143.95,143.91,15.64]
[1728433115137,10.68,143.96,143.91,15.64]
[1728433115541,3.4751,143.95,143.91,19.1157]
[1728433116449,3.4751,143.95,143.92,14.1556]
[1728433118244,3.4752,143.95,143.92,10.68]
[1728433118443,10.68,143.96,143.91,19.1157]
[1728433118848,3.4753,143.94,143.91,19.1157]
[1728433119848,3.4754,143.93,143.91,4.96]
[1728433120248,10.68,143.95,143.91,4.96]
[1728433120453,3.4753,143.94,143.91,19.1159]
[1728433123653,3.4751,143.95,143.92,14.1555]
[1728433123850,10.68,143.96,143.92,10.68]
[1728433124155,14.1549,143.96,143.93,3.4753]
[1728433124452,10.68,143.97,143.92,10.68]
[1728433124751,3.4748,143.96,143.93,3.4754]
[1728433124954,3.4748,143.96,143.92,10.68]
[1728433124955,10.68,143.97,143.92,10.68]
[1728433125149,3.475,143.95,143.92,14.1555]
[1728433125348,10.68,143.97,143.92,10.68]
[1728433126052,3.4749,143.96,143.92,14.1555]
[1728433126356,10.68,143.97,143.92,10.68]
[1728433126547,10.80502,143.99,143.95,10.68]
[1728433126954,10.68,143.98,143.94,4.96]
[1728433127455,10.68,143.98,143.94,15.64]
[1728433128245,10.80502,143.99,143.94,15.64]
[1728433128445,3.4743,143.98,143.95,3.4748]
[1728433129455,3.4743,143.98,143.94,19.1151]
[1728433129951,10.80502,143.99,143.94,15.64]
[1728433130157,14.27902,143.99,143.95,10.68]
[1728433130348,10.68,143.98,143.94,15.64]
[1728433131056,0.12502,143.99,143.94,15.64]
[1728433131057,10.80502,143.99,143.94,15.64]
[1728433131465,3.4743,143.98,143.95,3.4749]
[1728433136656,3.4747,143.96,143.94,4.96]
[1728433137052,10.68,143.98,143.94,4.96]
[1728433137653,10.68,143.98,143.93,10.68]
[1728433137960,10.68,143.94,143.91,4.96]
[1728433138156,3.4756,143.93,143.91,4.96]
[1728433139462,10.68,143.94,143.9,4.96]
[1728433140059,3.4759,143.92,143.9,4.96]
[1728433140466,10.68,143.95,143.9,19.116]
[1728433140656,3.4751,143.95,143.91,10.68]
[1728433140860,10.68,143.95,143.9,15.64]
[1728433141558,10.68,143.96,143.91,14.1559]
[1728433141764,3.4751,143.95,143.91,14.1559]
[1728433142067,10.68,143.96,143.91,14.1559]
[1728433142370,3.475,143.95,143.92,3.4756]
[1728433142859,10.68,143.96,143.92,3.4756]
[1728433143058,14.1548,143.96,143.92,3.4756]
[1728433144268,4.2347,143.98,143.93,15.62]
[1728433144269,14.1545,143.97,143.93,15.62]
[1728433144472,14.1545,143.97,143.94,10.68]
[1728433144473,3.4745,143.97,143.94,10.68]
[1728433144659,10.80502,143.99,143.94,10.68]
[1728433144861,3.4746,143.97,143.94,10.68]
[1728433146071,10.68,143.97,143.93,19.0953]
[1728433146271,3.4749,143.96,143.93,15.62]
[1728433146657,3.4754,143.93,143.9,3.4761]
[1728433146859,10.68,143.94,143.9,4.94]
[1728433147271,3.4756,143.93,143.9,4.94]
[1728433147973,3.4756,143.93,143.89,14.1563]
[1728433148276,3.4756,143.93,143.9,4.94]
[1728433149473,14.1553,143.94,143.9,8.416]
[1728433149673,10.68,143.94,143.9,8.416]
[1728433149973,10.68,143.94,143.9,3.476]
[1728433150171,10.68,143.94,143.9,8.416]
[1728433150372,3.4754,143.93,143.9,8.416]
[1728433151968,10.68,143.94,143.89,10.68]
[1728433152179,4.0389,143.97,143.89,4.94]
[1728433152180,10.68,143.92,143.89,4.94]
[1728433152669,3.4761,143.91,143.89,4.94]
[1728433154470,3.4757,143.92,143.89,4.94]
[1728433155087,3.4755,143.93,143.9,14.156]